[Event "4NCL Div 2 2024-25"]
[Site "England"]
[Date "2025.04.06"]
[Round "8.18"]
[White "Larchikov, Maksym"]
[Black "Taylor, Adam A"]
[Result "1/2-1/2"]
[Annotator "ChessBase"]
[ECO "E11"]
[WhiteElo "2050"]
[BlackElo "2258"]
[PlyCount "168"]
[EventDate "2024.11.23"]
[EventType "team-tourn"]
[EventCountry "ENG"]
[SourceTitle "playchess.com"]
[Source "ChessBase"]
[SourceQuality "1"]
[TimeControl "40/6000+30:3000+30"]

1. d4 {[%emt 0:10:05]} Nf6 {[%emt 0:13:40]} 2. c4 {[%emt 0:00:14]} e6 {[%emt 0:00:02]} 3. Nf3 {[%emt 0:00:16]} Bb4+ {[%emt 0:00:05]} 4. Bd2 {[%emt 0:00:24]} a5 {[%emt 0:00:10]} 5. Nc3 {[%emt 0:04:54]} O-O {[%emt 0:08:17]} 6. e3 {[%emt 0:06:06]} d5 {[%emt 0:03:50]} 7. Qc2 {[%emt 1:22:01]} Nbd7 {[%emt 0:07:57]} 8. a3 {[%emt 0:00:00]} Be7 {[%emt 0:00:58]} 9. Rc1 {[%emt 0:00:00]} c6 {[%emt 0:01:41]} 10. Bd3 {[%emt 0:00:00]} Bd6 {[%emt 0:03:42]} 11. O-O {[%emt 0:00:00]} Qe7 {[%emt 0:15:25]} 12. e4 {[%emt 0:00:00]} dxc4 {[%emt 0:11:33]} 13. Bxc4 {[%emt 0:00:00]} e5 {[%emt 0:00:07]} 14. Be3 {[%emt 0:00:00]} exd4 {[%emt 0:03:02]} 15. Bxd4 {[%emt 0:00:00]} Ne5 {[%emt 0:03:31]} 16. Nxe5 {[%emt 0:00:00]} Bxe5 {[%emt 0:03:32]} 17. Bxe5 {[%emt 0:00:00]} Qxe5 {[%emt 0:00:05]} 18. Be2 {[%emt 0:00:00]} Bg4 {[%emt 0:01:21]} 19. f3 {[%emt 0:00:00]} Be6 {[%emt 0:01:03]} 20. f4 {[%emt 0:00:00]} Qd4+ {[%emt 0:07:02]} 21. Kh1 {[%emt 0:00:00]} Rad8 {[%emt 0:00:26]} 22. Rcd1 {[%emt 0:00:00]} Qb6 {[%emt 0:10:07]} 23. Rxd8 {[%emt 0:00:00]} Rxd8 {[%emt 0:00:04]} 24. Rd1 {[%emt 0:00:00]} g6 {[%emt 0:02:27]} 25. Rxd8+ {[%emt 0:00:00]} Qxd8 {[%emt 0:00:03]} 26. Bf3 {[%emt 0:00:00]} Qd4 {[%emt 0:04:36]} 27. Qe2 {[%emt 0:00:00]} Bc4 {[%emt 0:01:50]} 28. Qe1 {[%emt 0:00:00]} Kg7 {[%emt 0:01:14]} 29. g4 {[%emt 0:00:47]} h6 {[%emt 0:01:52]} 30. Nd1 {[%emt 0:03:58]} Bd3 {[%emt 0:03:22]} 31. Nf2 {[%emt 0:03:22]} Bc2 {[%emt 0:00:46]} 32. b4 {[%emt 0:02:10]} axb4 {[%emt 0:00:36]} 33. axb4 {[%emt 0:00:05]} b6 {[%emt 0:01:15]} 34. Qe2 {[%emt 0:02:31]} Bb3 {[%emt 0:00:36]} 35. f5 {[%emt 0:00:24]} Nd7 {[%emt 0:00:41]} 36. Nd3 {[%emt 0:00:30]} Bc4 {[%emt 0:00:46]} 37. Qb2 {[%emt 0:00:01]} Qxb2 {[%emt 0:00:29]} 38. Nxb2 {[%emt 0:00:02]} Bb5 {[%emt 0:00:21]} 39. Kg2 {[%emt 0:00:19]} Kf6 {[%emt 0:00:05]} 40. Kf2 {[%emt 0:01:35]} Ke5 {[%emt 0:00:23]} 41. Ke3 {[%emt 0:50:14]} g5 {[%emt 0:27:22]} 42. Nd1 {[%emt 0:00:00]} Nb8 {[%emt 0:05:18]} 43. Nc3 {[%emt 0:00:00]} Na6 {[%emt 0:01:30]} 44. Nxb5 {[%emt 0:00:00]} cxb5 {[%emt 0:00:04]} 45. Be2 {[%emt 0:00:00]} Nxb4 {[%emt 0:00:08]} 46. Bxb5 {[%emt 0:00:00]} Nc2+ {[%emt 0:00:08]} 47. Kd3 {[%emt 0:00:00]} Nd4 {[%emt 0:00:03]} 48. Bc4 {[%emt 0:00:00]} f6 {[%emt 0:00:04]} 49. Ke3 {[%emt 0:00:00]} Nc6 {[%emt 0:04:39]} 50. Bd5 {[%emt 0:00:00]} Nb4 {[%emt 0:01:48]} 51. Bc4 {[%emt 0:00:00]} Nc2+ {[%emt 0:00:10]} 52. Kd3 {[%emt 0:00:00]} Ne1+ {[%emt 0:08:25]} 53. Ke3 {[%emt 0:00:00]} Nc2+ {[%emt 0:07:12]} 54. Kd3 {[%emt 0:00:00]} Nd4 {[%emt 0:00:24]} 55. Ke3 {[%emt 0:00:00]} Nc6 {[%emt 0:00:03]} 56. Bd5 {[%emt 0:00:00]} Nb8 {[%emt 0:00:36]} 57. Bc4 {[%emt 0:00:00]} Nd7 {[%emt 0:00:04]} 58. Bb5 {[%emt 0:00:00]} Nc5 {[%emt 0:00:03]} 59. Bc6 {[%emt 0:00:00]} Kd6 {[%emt 0:02:16]} 60. Bb5 {[%emt 0:00:00]} Nb3 {[%emt 0:00:36]} 61. Bc4 {[%emt 0:00:00]} Na5 {[%emt 0:00:33]} 62. Be2 {[%emt 0:00:00]} Kc5 {[%emt 0:00:27]} 63. e5 {[%emt 0:00:00]} fxe5 {[%emt 0:00:03]} 64. f6 {[%emt 0:00:00]} Kd6 {[%emt 0:00:02]} 65. f7 {[%emt 0:00:00]} Ke7 {[%emt 0:00:02]} 66. Ke4 {[%emt 0:00:00]} Kxf7 {[%emt 0:00:23]} 67. Kxe5 {[%emt 0:00:00]} Nc6+ {[%emt 0:00:05]} 68. Kd5 {[%emt 0:00:00]} Ne7+ {[%emt 0:00:06]} 69. Ke5 {[%emt 0:00:00]} Ng6+ {[%emt 0:01:14]} 70. Kf5 {[%emt 0:00:00]} Nf4 {[%emt 0:00:09]} 71. Bc4+ {[%emt 0:00:00]} Ke7 {[%emt 0:00:11]} 72. h4 {[%emt 0:00:00]} Ng2 {[%emt 0:00:56]} 73. hxg5 {[%emt 0:00:00]} Ne3+ {[%emt 0:00:03]} 74. Ke4 {[%emt 0:00:00]} Nxc4 {[%emt 0:00:11]} 75. gxh6 {[%emt 0:00:00]} Ke6 {[%emt 0:01:10]} 76. h7 {[%emt 0:00:00]} Nd6+ {[%emt 0:00:07]} 77. Kd4 {[%emt 0:00:00]} Nf7 {[%emt 0:00:05]} 78. Kc4 {[%emt 0:01:51]} Kd6 {[%emt 0:01:01]} 79. g5 {[%emt 0:00:55]} Nh8 {[%emt 0:00:27]} 80. Kd4 {[%emt 0:00:32]} b5 {[%emt 0:00:09]} 81. Ke4 {[%emt 0:00:23]} Ke6 {[%emt 0:01:35]} 82. Kd4 {[%emt 0:00:04]} Kd6 {[%emt 0:00:02]} 83. Ke4 {[%emt 0:00:06]} b4 {[%emt 0:00:28]} 84. Kd4 {[%emt 0:00:08]} Ke6 {[%emt 0:03:06]} 1/2-1/2

[Event "4NCL Div 2 2024-25"]
[Site "England"]
[Date "2025.04.06"]
[Round "8.19"]
[White "Zhang, Junyi"]
[Black "Wall, Tim P"]
[Result "0-1"]
[Annotator "ChessBase"]
[ECO "C55"]
[WhiteElo "2123"]
[BlackElo "2168"]
[PlyCount "100"]
[EventDate "2024.11.23"]
[EventType "team-tourn"]
[EventCountry "ENG"]
[SourceTitle "playchess.com"]
[Source "ChessBase"]
[SourceQuality "1"]
[TimeControl "40/6000+30:3000+30"]

1. e4 {[%emt 0:10:01]} e5 {[%emt 0:10:36]} 2. Nf3 {[%emt 0:00:46]} Nc6 {[%emt 0:00:08]} 3. Bc4 {[%emt 0:00:15]} d6 {[%emt 0:00:17]} 4. O-O {[%emt 0:09:01]} Be7 {[%emt 0:02:15]} 5. h3 {[%emt 0:05:15]} Nf6 {[%emt 0:00:32]} 6. Re1 {[%emt 0:01:44]} O-O {[%emt 0:00:53]} 7. a4 {[%emt 0:02:03]} Nxe4 {[%emt 0:11:19]} 8. Rxe4 {[%emt 0:04:06]} d5 {[%emt 0:00:35]} 9. Bxd5 {[%emt 0:00:53]} Qxd5 {[%emt 0:00:17]} 10. Nc3 {[%emt 0:00:35]} Qd6 {[%emt 0:06:28]} 11. d3 {[%emt 0:02:43]} f5 {[%emt 0:07:52]} 12. Re1 {[%emt 0:02:17]} Bf6 {[%emt 0:02:56]} 13. Bg5 {[%emt 0:04:07]} Bxg5 {[%emt 0:05:09]} 14. Nxg5 {[%emt 0:01:09]} a6 {[%emt 0:00:30]} 15. Nf3 {[%emt 0:03:11]} Bd7 {[%emt 0:03:25]} 16. Qd2 {[%emt 0:12:38]} Rae8 {[%emt 0:05:06]} 17. Ne2 {[%emt 0:12:31]} Qg6 {[%emt 0:09:04]} 18. Kf1 {[%emt 0:16:55]} e4 {[%emt 0:10:52]} 19. dxe4 {[%emt 0:02:27]} fxe4 {[%emt 0:01:01]} 20. Qxd7 {[%emt 0:02:53]} exf3 {[%emt 0:00:16]} 21. Ng3 {[%emt 0:03:12]} Rd8 {[%emt 0:08:05]} 22. Qe6+ {[%emt 0:07:37]} Qxe6 {[%emt 0:00:35]} 23. Rxe6 {[%emt 0:00:02]} Rd2 {[%emt 0:01:39]} 24. gxf3 {[%emt 0:01:00]} Rxc2 {[%emt 0:01:27]} 25. Re2 {[%emt 0:00:59]} Rxe2 {[%emt 0:02:15]} 26. Kxe2 {[%emt 0:00:03]} Nd4+ {[%emt 0:00:59]} 27. Kd3 {[%emt 0:01:36]} Nxf3 {[%emt 0:05:06]} 28. Rc1 {[%emt 0:01:10]} Ne5+ {[%emt 0:01:54]} 29. Ke2 {[%emt 0:00:39]} c6 {[%emt 0:01:02]} 30. Rd1 {[%emt 0:00:31]} Rf4 {[%emt 0:02:01]} 31. Rd8+ {[%emt 0:00:47]} Kf7 {[%emt 0:00:11]} 32. Rb8 {[%emt 0:01:57]} Rb4 {[%emt 0:01:24]} 33. Nf5 {[%emt 0:00:22]} Rxb2+ {[%emt 0:01:32]} 34. Kf1 {[%emt 0:00:13]} b5 {[%emt 0:02:17]} 35. axb5 {[%emt 0:00:39]} axb5 {[%emt 0:00:55]} 36. Rb7+ {[%emt 0:00:04]} Kg6 {[%emt 0:01:09]} 37. Nxg7 {[%emt 0:00:22]} Nd3 {[%emt 0:00:40]} 38. Kg1 {[%emt 0:01:10]} Nxf2 {[%emt 0:00:54]} 39. Ne8 {[%emt 0:00:20]} Nxh3+ {[%emt 0:00:33]} 40. Kf1 {[%emt 0:00:06]} Ng5 {[%emt 0:01:54]} 41. Rb6 {[%emt 0:50:06]} Rc2 {[%emt 0:52:05]} 42. Nd6 {[%emt 0:00:20]} Kh5 {[%emt 0:02:45]} 43. Nc8 {[%emt 0:01:13]} Nf3 {[%emt 0:00:00]} 44. Rb7 {[%emt 0:00:00]} h6 {[%emt 0:00:00]} 45. Nd6 {[%emt 0:00:00]} Kg6 {[%emt 0:00:00]} 46. Nxb5 {[%emt 0:00:00]} cxb5 {[%emt 0:00:00]} 47. Rxb5 {[%emt 0:00:00]} h5 {[%emt 0:00:00]} 48. Rd5 {[%emt 0:00:00]} Ng5 {[%emt 0:00:00]} 49. Kg1 {[%emt 0:00:00]} h4 {[%emt 0:00:00]} 50. Kh1 {[%emt 0:00:00]} Kh5 {[%emt 0:00:00]} 0-1

[Event "4NCL Div 2 2024-25"]
[Site "England"]
[Date "2025.04.06"]
[Round "8.20"]
[White "Chan, Sheng Liang Bernard"]
[Black "Alizada, Eldar"]
[Result "1-0"]
[Annotator "NA"]
[ECO "C10"]
[WhiteElo "2101"]
[BlackElo "1998"]
[PlyCount "49"]
[EventDate "2024.11.23"]
[EventType "team-tourn"]
[EventCountry "ENG"]
[SourceTitle "playchess.com"]
[Source "ChessBase"]
[SourceQuality "1"]
[TimeControl "40/6000+30:3000+30"]

1. e4 {[%emt 0:10:16]} e6 {[%emt 0:10:18]} 2. d4 {[%emt 0:00:38]} d5 {[%emt 0:00:04]} 3. Nc3 {[%emt 0:00:35]} dxe4 {[%emt 0:00:51]} 4. Nxe4 {[%emt 0:00:09]} Nd7 {[%emt 0:00:05]} 5. Nf3 {[%emt 0:00:25]} Ngf6 {[%emt 0:00:05]} 6. Nxf6+ {[%emt 0:00:09]} Nxf6 {[%emt 0:00:02]} 7. Bd3 {[%emt 0:00:11]} Be7 {[%emt 0:00:37]} 8. Be3 {[%emt 0:00:14]} O-O {[%emt 0:00:30]} 9. Qe2 {[%emt 0:00:13]} b6 {[%emt 0:01:47]} 10. O-O-O {[%emt 0:00:10]} Bb7 {[%emt 0:00:05]} 11. Kb1 {[%emt 0:00:41]} Be4 {[%emt 0:05:23]} 12. h4 {[%emt 0:01:22]} Qd5 {[%emt 0:08:49]} 13. Bg5 {[%emt 0:00:29]} Rfe8 {[%emt 0:08:54]} 14. Rhe1 {[%emt 0:00:14]} Bxd3 {[%emt 0:01:16]} 15. Rxd3 {[%emt 0:00:08]} Rad8 {[%emt 0:04:38]} 16. Ne5 {[%emt 0:06:31]} c5 {[%emt 0:07:27]} 17. dxc5 {[%emt 0:07:27]} Qxc5 {[%emt 0:00:22]} 18. Rc3 {[%emt 0:00:29]} Qd6 {[%emt 0:05:02]} 19. Qf3 {[%emt 0:20:01]} Qd5 {[%emt 0:12:21]} 20. Nc6 {[%emt 0:02:43]} Rd7 {[%emt 0:14:38]} 21. Nxe7+ {[%emt 0:06:49]} Rexe7 {[%emt 0:01:52]} 22. Bxf6 {[%emt 0:00:30]} gxf6 {[%emt 0:06:21]} 23. Rc8+ {[%emt 0:00:25]} Kg7 {[%emt 0:00:49]} 24. Qg4+ {[%emt 0:00:17]} Kh6 {[%emt 0:00:02]} 25. Rg8 {[%emt 0:00:19]} 1-0

[Event "4NCL Div 2 2024-25"]
[Site "England"]
[Date "2025.04.06"]
[Round "8.21"]
[White "Lishoy Gengis Paratazham, Dildarav"]
[Black "Arnott, Jonathan W"]
[Result "1/2-1/2"]
[Annotator "NA"]
[ECO "A04"]
[WhiteElo "2045"]
[BlackElo "2087"]
[PlyCount "30"]
[EventDate "2024.11.23"]
[EventType "team-tourn"]
[EventCountry "ENG"]
[SourceTitle "playchess.com"]
[Source "ChessBase"]
[SourceQuality "1"]
[TimeControl "40/6000+30:3000+30"]

1. Nf3 {[%emt 0:10:03]} f5 {[%emt 0:10:37]} 2. g3 {[%emt 0:00:15]} e6 {[%emt 0:00:11]} 3. Bg2 {[%emt 0:00:35]} Nf6 {[%emt 0:00:07]} 4. b3 {[%emt 0:03:37]} Be7 {[%emt 0:01:18]} 5. Bb2 {[%emt 0:00:17]} O-O {[%emt 0:00:06]} 6. c4 {[%emt 0:02:18]} d6 {[%emt 0:00:55]} 7. d4 {[%emt 0:01:44]} a5 {[%emt 0:01:47]} 8. Nbd2 {[%emt 0:03:52]} Ne4 {[%emt 0:03:12]} 9. O-O {[%emt 0:05:22]} Qe8 {[%emt 0:01:37]} 10. Qc2 {[%emt 0:04:13]} Nxd2 {[%emt 0:03:06]} 11. Nxd2 {[%emt 0:05:18]} Qh5 {[%emt 0:00:05]} 12. Bf3 {[%emt 0:02:13]} Qh3 {[%emt 0:03:14]} 13. Bg2 {[%emt 0:01:04]} Qh5 {[%emt 0:01:02]} 14. Bf3 {[%emt 0:07:54]} Qh3 {[%emt 0:00:46]} 15. Bg2 {[%emt 0:01:21]} Qh5 {[%emt 1:19:57]} 1/2-1/2

[Event "4NCL Div 2 2024-25"]
[Site "England"]
[Date "2025.04.06"]
[Round "8.22"]
[White "Gayson, Peter M"]
[Black "Waller, Dan"]
[Result "0-1"]
[Annotator "NA"]
[ECO "B35"]
[WhiteElo "2087"]
[BlackElo "2099"]
[PlyCount "110"]
[EventDate "2024.11.23"]
[EventType "team-tourn"]
[EventCountry "ENG"]
[SourceTitle "playchess.com"]
[Source "ChessBase"]
[SourceQuality "1"]
[TimeControl "40/6000+30:3000+30"]

1. e4 {[%emt 0:19:13]} c5 {[%emt 0:10:08]} 2. Nf3 {[%emt 0:00:10]} g6 {[%emt 0:00:10]} 3. d4 {[%emt 0:00:12]} cxd4 {[%emt 0:00:05]} 4. Nxd4 {[%emt 0:00:28]} Nc6 {[%emt 0:00:10]} 5. Nc3 {[%emt 0:00:24]} Bg7 {[%emt 0:00:06]} 6. Be3 {[%emt 0:00:14]} Nf6 {[%emt 0:00:08]} 7. Bc4 {[%emt 0:00:38]} O-O {[%emt 0:00:08]} 8. Bb3 {[%emt 0:00:26]} a6 {[%emt 0:00:28]} 9. O-O {[%emt 0:01:21]} Qc7 {[%emt 0:00:44]} 10. f4 {[%emt 0:04:11]} d6 {[%emt 0:00:15]} 11. Kh1 {[%emt 0:01:03]} Na5 {[%emt 0:02:55]} 12. Qd3 {[%emt 0:05:10]} b5 {[%emt 0:02:19]} 13. Rae1 {[%emt 0:17:00]} Bb7 {[%emt 0:04:32]} 14. Bg1 {[%emt 0:09:26]} Nd7 {[%emt 0:09:14]} 15. Nd5 {[%emt 0:02:51]} Bxd5 {[%emt 0:00:17]} 16. Bxd5 {[%emt 0:02:00]} Rac8 {[%emt 0:01:34]} 17. c3 {[%emt 0:05:51]} Nc4 {[%emt 0:11:19]} 18. Qe2 {[%emt 0:07:04]} Ndb6 {[%emt 0:02:03]} 19. f5 {[%emt 0:04:57]} Nxd5 {[%emt 0:05:00]} 20. exd5 {[%emt 0:02:39]} Ne5 {[%emt 0:00:22]} 21. fxg6 {[%emt 0:01:34]} hxg6 {[%emt 0:00:11]} 22. Nf3 {[%emt 0:10:57]} Qc4 {[%emt 0:06:53]} 23. Qd2 {[%emt 0:00:30]} Qxa2 {[%emt 0:14:44]} 24. Nxe5 {[%emt 0:00:27]} dxe5 {[%emt 0:03:59]} 25. Ra1 {[%emt 0:01:57]} Qc4 {[%emt 0:00:08]} 26. Rfd1 {[%emt 0:00:24]} Ra8 {[%emt 0:02:43]} 27. Bb6 {[%emt 0:02:40]} Rfe8 {[%emt 0:08:46]} 28. h3 {[%emt 0:00:34]} Qh4 {[%emt 0:01:55]} 29. Be3 {[%emt 0:02:55]} a5 {[%emt 0:02:04]} 30. Bb6 {[%emt 0:02:04]} a4 {[%emt 0:02:28]} 31. Qe2 {[%emt 0:00:57]} Qc4 {[%emt 0:09:50]} 32. Qf2 {[%emt 0:00:30]} b4 {[%emt 0:00:48]} 33. cxb4 {[%emt 0:01:00]} Qxb4 {[%emt 0:00:12]} 34. Bc5 {[%emt 0:00:14]} Qb7 {[%emt 0:00:46]} 35. Rd2 {[%emt 0:01:58]} Red8 {[%emt 0:02:27]} 36. Rf1 {[%emt 0:00:36]} f5 {[%emt 0:00:50]} 37. Rfd1 {[%emt 0:00:19]} Rd7 {[%emt 0:00:47]} 38. Qg3 {[%emt 0:01:31]} Kf7 {[%emt 0:00:32]} 39. d6 {[%emt 0:02:28]} e6 {[%emt 0:03:56]} 40. Ba3 {[%emt 0:01:02]} Rc8 {[%emt 0:02:36]} 41. Qh4 {[%emt 0:22:11]} Rh8 {[%emt 0:24:08]} 42. Qxa4 {[%emt 0:04:26]} Rxh3+ {[%emt 0:00:05]} 43. Kg1 {[%emt 0:00:05]} Rh8 {[%emt 0:03:42]} 44. Rc2 {[%emt 0:02:21]} Rc8 {[%emt 0:07:06]} 45. Rdc1 {[%emt 0:02:37]} Rxc2 {[%emt 0:02:28]} 46. Rxc2 {[%emt 0:01:19]} e4 {[%emt 0:02:16]} 47. Rc6 {[%emt 0:11:08]} Be5 {[%emt 0:03:31]} 48. Kf1 {[%emt 0:02:18]} Kf6 {[%emt 0:01:32]} 49. Ra6 {[%emt 0:06:13]} Qd5 {[%emt 0:03:29]} 50. Qc2 {[%emt 0:01:46]} Rh7 {[%emt 0:06:04]} 51. Bc5 {[%emt 0:00:19]} Rh1+ {[%emt 0:00:23]} 52. Ke2 {[%emt 0:01:20]} f4 {[%emt 0:00:20]} 53. Ra4 {[%emt 0:00:25]} f3+ {[%emt 0:00:43]} 54. Kf2 {[%emt 0:00:14]} fxg2 {[%emt 0:02:36]} 55. Kxg2 {[%emt 0:00:21]} Rh2+ {[%emt 0:00:05]} 0-1

[Event "4NCL Div 2 2024-25"]
[Site "England"]
[Date "2025.04.06"]
[Round "8.23"]
[White "Foo, Zhi Rong Benjamin"]
[Black "Edwards-Wright, Miles D"]
[Result "1-0"]
[Annotator "ChessBase"]
[ECO "B06"]
[WhiteElo "2177"]
[BlackElo "1970"]
[PlyCount "53"]
[EventDate "2024.11.23"]
[EventType "team-tourn"]
[EventCountry "ENG"]
[SourceTitle "playchess.com"]
[Source "ChessBase"]
[SourceQuality "1"]
[TimeControl "40/6000+30:3000+30"]

1. e4 {[%emt 0:13:55]} g6 {[%emt 0:10:04]} 2. d4 {[%emt 0:00:03]} Bg7 {[%emt 0:00:03]} 3. Nc3 {[%emt 0:00:07]} d6 {[%emt 0:00:02]} 4. Be3 {[%emt 0:00:22]} Nd7 {[%emt 0:00:06]} 5. h4 {[%emt 0:01:34]} h5 {[%emt 0:00:06]} 6. Nh3 {[%emt 0:00:11]} a6 {[%emt 0:01:00]} 7. Ng5 {[%emt 0:00:49]} Nh6 {[%emt 0:00:01]} 8. f3 {[%emt 0:00:35]} b5 {[%emt 0:00:35]} 9. a4 {[%emt 0:04:08]} b4 {[%emt 0:01:23]} 10. Nd5 {[%emt 0:01:29]} a5 {[%emt 0:01:38]} 11. Bc4 {[%emt 0:02:12]} e6 {[%emt 0:00:21]} 12. Nf4 {[%emt 0:00:18]} Nb6 {[%emt 0:00:07]} 13. Bb5+ {[%emt 0:09:19]} Kf8 {[%emt 0:01:58]} 14. Qe2 {[%emt 0:04:50]} Qe7 {[%emt 0:04:03]} 15. O-O-O {[%emt 0:04:16]} d5 {[%emt 0:01:15]} 16. e5 {[%emt 0:07:36]} Bd7 {[%emt 0:01:18]} 17. b3 {[%emt 0:01:04]} Nf5 {[%emt 0:04:03]} 18. Bd3 {[%emt 0:06:43]} Nxe3 {[%emt 0:04:48]} 19. Qxe3 {[%emt 0:02:43]} Be8 {[%emt 1:17:09]} 20. g4 {[%emt 0:01:19]} Rc8 {[%emt 0:00:00]} 21. Rdg1 {[%emt 0:02:43]} c5 {[%emt 0:00:00]} 22. gxh5 {[%emt 0:04:30]} c4 {[%emt 0:00:00]} 23. Bxg6 {[%emt 0:03:37]} cxb3 {[%emt 0:00:00]} 24. Nh7+ {[%emt 0:03:53]} Rxh7 {[%emt 0:00:00]} 25. Bxh7 {[%emt 0:00:06]} b2+ {[%emt 0:00:00]} 26. Kb1 {[%emt 0:00:22]} Rc3 {[%emt 0:00:00]} 27. h6 {[%emt 0:00:28]} 1-0

[Event "4NCL Div 2 2024-25"]
[Site "England"]
[Date "2025.04.06"]
[Round "8.24"]
[White "Rich, Aaron"]
[Black "Handley, Michael R"]
[Result "1/2-1/2"]
[Annotator "NA"]
[ECO "A01"]
[WhiteElo "1919"]
[BlackElo "1993"]
[PlyCount "62"]
[EventDate "2024.11.23"]
[EventType "team-tourn"]
[EventCountry "ENG"]
[SourceTitle "playchess.com"]
[Source "ChessBase"]
[SourceQuality "1"]
[TimeControl "40/6000+30:3000+30"]

1. b3 {[%emt 0:10:31]} e5 {[%emt 0:38:05]} 2. Bb2 {[%emt 0:00:37]} Nc6 {[%emt 0:03:23]} 3. e3 {[%emt 0:00:07]} Nf6 {[%emt 0:00:03]} 4. Bb5 {[%emt 0:00:08]} Bd6 {[%emt 0:00:03]} 5. Na3 {[%emt 0:00:11]} Na5 {[%emt 0:01:13]} 6. Nc4 {[%emt 0:06:09]} Nxc4 {[%emt 0:00:16]} 7. Bxc4 {[%emt 0:01:48]} O-O {[%emt 0:01:33]} 8. a3 {[%emt 0:02:00]} c6 {[%emt 0:00:34]} 9. b4 {[%emt 0:08:40]} b5 {[%emt 0:10:38]} 10. Ba2 {[%emt 0:01:19]} a5 {[%emt 0:00:03]} 11. Ne2 {[%emt 0:04:05]} Kh8 {[%emt 0:00:46]} 12. O-O {[%emt 0:02:44]} Qe7 {[%emt 0:00:10]} 13. Ng3 {[%emt 0:01:30]} Bc7 {[%emt 0:00:10]} 14. Nf5 {[%emt 0:01:24]} Qd8 {[%emt 0:00:55]} 15. d4 {[%emt 0:09:02]} exd4 {[%emt 0:20:56]} 16. Bxd4 {[%emt 0:14:14]} d5 {[%emt 0:13:04]} 17. Qf3 {[%emt 0:05:43]} Bxf5 {[%emt 0:00:48]} 18. Qxf5 {[%emt 0:00:08]} Ne4 {[%emt 0:04:08]} 19. Qg4 {[%emt 0:02:39]} f6 {[%emt 0:00:23]} 20. f3 {[%emt 0:03:27]} Nd6 {[%emt 0:01:14]} 21. Bb3 {[%emt 0:05:23]} Nc4 {[%emt 0:01:16]} 22. Bxc4 {[%emt 0:05:57]} bxc4 {[%emt 0:00:02]} 23. c3 {[%emt 0:01:41]} Re8 {[%emt 0:01:37]} 24. Rfe1 {[%emt 0:07:28]} Be5 {[%emt 0:01:09]} 25. Qh4 {[%emt 0:04:05]} Qc7 {[%emt 0:01:24]} 26. f4 {[%emt 0:02:05]} Bxd4 {[%emt 0:01:37]} 27. exd4 {[%emt 0:00:10]} axb4 {[%emt 0:02:57]} 28. axb4 {[%emt 0:02:30]} Qd7 {[%emt 0:00:49]} 29. Rxa8 {[%emt 0:01:08]} Rxa8 {[%emt 0:00:00]} 30. Qf2 {[%emt 0:01:00]} Re8 {[%emt 0:00:45]} 31. Kf1 {[%emt 0:00:56]} Kg8 {[%emt 0:01:15]} 1/2-1/2

[Event "4NCL Div 2 2024-25"]
[Site "England"]
[Date "2025.04.06"]
[Round "8.25"]
[White "Kanyamarala, Tarun"]
[Black "Southcott-Moyers, Indy"]
[Result "1-0"]
[Annotator "ChessBase"]
[ECO "A13"]
[WhiteElo "2386"]
[BlackElo "2174"]
[PlyCount "105"]
[EventDate "2024.11.23"]
[EventType "team-tourn"]
[EventCountry "ENG"]
[SourceTitle "playchess.com"]
[Source "ChessBase"]
[SourceQuality "1"]
[TimeControl "40/6000+30:3000+30"]

1. c4 {[%emt 0:10:04]} e6 {[%emt 0:10:03]} 2. Nf3 {[%emt 0:00:06]} d5 {[%emt 0:00:25]} 3. g3 {[%emt 0:00:07]} Nf6 {[%emt 0:01:01]} 4. Bg2 {[%emt 0:00:09]} dxc4 {[%emt 0:01:08]} 5. O-O {[%emt 0:00:11]} a6 {[%emt 0:07:35]} 6. Qc2 {[%emt 0:00:43]} c5 {[%emt 0:05:03]} 7. Ne5 {[%emt 0:11:34]} Ra7 {[%emt 0:03:29]} 8. a4 {[%emt 0:03:03]} b6 {[%emt 0:02:41]} 9. Qxc4 {[%emt 0:04:59]} Bb7 {[%emt 0:03:22]} 10. Bxb7 {[%emt 0:00:58]} Rxb7 {[%emt 0:00:06]} 11. b3 {[%emt 0:01:20]} Bd6 {[%emt 0:07:05]} 12. Bb2 {[%emt 0:00:50]} O-O {[%emt 0:01:01]} 13. Na3 {[%emt 0:11:06]} Nd5 {[%emt 0:06:39]} 14. d4 {[%emt 0:06:33]} cxd4 {[%emt 0:08:29]} 15. Qxd4 {[%emt 0:00:20]} f6 {[%emt 0:01:08]} 16. Nf3 {[%emt 0:01:08]} Qe7 {[%emt 0:05:20]} 17. Nc4 {[%emt 0:03:39]} Bc5 {[%emt 0:03:08]} 18. Qe4 {[%emt 0:00:59]} Nc6 {[%emt 0:02:19]} 19. Rfd1 {[%emt 0:04:12]} f5 {[%emt 0:02:58]} 20. Qc2 {[%emt 0:02:53]} b5 {[%emt 0:04:33]} 21. Nce5 {[%emt 0:04:05]} Nxe5 {[%emt 0:04:02]} 22. Bxe5 {[%emt 0:01:13]} Rc8 {[%emt 0:05:39]} 23. Qd3 {[%emt 0:01:56]} Bb6 {[%emt 0:02:24]} 24. axb5 {[%emt 0:01:09]} axb5 {[%emt 0:01:41]} 25. Rdc1 {[%emt 0:07:06]} Rd8 {[%emt 0:01:43]} 26. Qc2 {[%emt 0:00:52]} h6 {[%emt 0:01:09]} 27. Rd1 {[%emt 0:02:34]} Qc5 {[%emt 0:03:38]} 28. Qxc5 {[%emt 0:01:20]} Bxc5 {[%emt 0:00:02]} 29. Ra6 {[%emt 0:04:21]} Re8 {[%emt 0:02:50]} 30. Rc1 {[%emt 0:06:17]} Nb4 {[%emt 0:02:25]} 31. Raa1 {[%emt 0:00:40]} Bb6 {[%emt 0:02:46]} 32. Bd6 {[%emt 0:03:27]} Nd5 {[%emt 0:00:05]} 33. h4 {[%emt 0:01:38]} Nf6 {[%emt 0:01:40]} 34. Bc5 {[%emt 0:01:14]} Bc7 {[%emt 0:02:05]} 35. Ra7 {[%emt 0:02:40]} Reb8 {[%emt 0:02:22]} 36. Ra6 {[%emt 0:02:40]} Kf7 {[%emt 0:04:07]} 37. Nd4 {[%emt 0:06:22]} Re8 {[%emt 0:01:39]} 38. Ra7 {[%emt 0:01:28]} Reb8 {[%emt 0:00:43]} 39. Nxb5 {[%emt 0:02:20]} Rxa7 {[%emt 0:00:07]} 40. Bxa7 {[%emt 0:00:10]} Rxb5 {[%emt 0:00:05]} 41. Rxc7+ {[%emt 0:50:06]} Kg8 {[%emt 0:22:53]} 42. Rc8+ {[%emt 0:00:00]} Kf7 {[%emt 0:01:47]} 43. Rb8 {[%emt 0:00:00]} Ra5 {[%emt 0:05:40]} 44. Rb7+ {[%emt 0:00:00]} Kg6 {[%emt 0:00:06]} 45. b4 {[%emt 0:00:00]} Ra1+ {[%emt 0:02:30]} 46. Kg2 {[%emt 0:00:00]} Rb1 {[%emt 0:01:23]} 47. b5 {[%emt 0:00:00]} h5 {[%emt 0:05:23]} 48. b6 {[%emt 0:00:00]} Nd5 {[%emt 0:02:14]} 49. Rd7 {[%emt 0:00:00]} Nb4 {[%emt 0:01:09]} 50. Rd6 {[%emt 0:00:00]} Nd5 {[%emt 0:00:30]} 51. Rxe6+ {[%emt 0:00:00]} Kf7 {[%emt 0:00:02]} 52. Rd6 {[%emt 0:00:41]} Rb5 {[%emt 0:00:31]} 53. Rxd5 {[%emt 0:00:29]} 1-0